Workbook

Sheet Navigation
A1: Produktgruppe | B1: Untergruppe | C1: Produkt | D1: Link (in dieser Arbeitsmappe)
A2: Backprodukt | B2: Fleischprodukt | C2: Fleischkäse | D2: Leberkäse
A3: Backprodukt | B3: Fleischprodukt | C3: Fleischkäse | D3: Fleischkäse ohne Cutter
A4: Bratwurst roh | B4: Fleischprodukt | C4: Bratwürstel frei nach Andi Lang | D4: Bratwürstel
A5: Bratwurst roh | B5: Fleischprodukt | C5: Fränkische Bratwurst | D5: Fränkische Bratwurst
A6: Bratwurst, roh | B6: Fleischprodukt | C6: Thüringer Bratwurst | D6: Thüringer Bratwurst
A7: Brühwurst | B7: Aufschnittwurst | C7: Mortadella | D7: Mortadella
A8: Brühwurst | B8: Fleischprodukt | C8: Blutwurst I | D8: Blutwurst I
A9: Brühwurst | B9: Fleischprodukt | C9: Kümmelfleisch | D9: Kümmelfleisch
A10: Brühwurst | B10: Fleischprodukt | C10: Nürnberger Rostbratwürstel | D10: Nürnberger Rostbratwürste
A11: Brühwurst | B11: Fleischprodukt | C11: Weißwurst Münchner Art | D11: Weißwurst Münchner Art
A12: Brühwurst | B12: Streichwurst | C12: Feine Leberstreichwurst 1 | D12: Feine Leberstreichwurst
A13: Brühwurst | B13: Streichwurst | C13: Feine Leberstreichwurst mit Schnittlauch | D13: Feine Leberstreichwurst 2
A14: Rohwurst | B14: Hartwurst | C14: Salami | D14: Salami
A15: Rohwurst | B15: Hartwurst | C15: Salsiccia di Cinghiale crudo | D15: Salsiccia Cinghiale
A16: Rohwurst | B16: Hartwurst | C16: Ungarische Salami | D16: Ungarische Salami

Sheet Weißwurst Münchner Art
B1: Zutaten | C1: Prozentualer Anteil | D1: Ansatz in kg | E1: Menge in kg | F1: Tag 1 Vorbereitung | G1: Tag 2 Produktion
A2: Fleisch | B2: Schweineschulter, mageres Kleinfleisch | C2: 50 | D2: 2 | E2: =C2*$D$2/100 -> 1.00 | G2: Alles getrennt faschieren mit 3mm-Scheibe, auch die Zwiebel (gem. mit Fleisch), dann kühlen auf 0°
B3: Speck | C3: 30 | E3: =C3*$D$2/100 -> 0.60
B4: Schwartenemulsion | C4: 20 | E4: 0.40 | F4: Kochen, mit etwas Sud pürieren, kühlen
B5: Fleischanteil gesamt | C5: =SUM(C2:C4) -> 100 | E5: =SUM(E2:E4) -> 2.00 | G5: Faschierte Schulter und Emulsion mit den Gewürzen cuttern, halbe Schüttung zugeben, weitercuttern.
A6: Wasser | B6: Eis (Schüttung) | C6: 30 | E6: 0.60 | F6: =_xlfn.TEXTJOIN(" ",,"Ergibt insgesamt:",E17, "kg") -> Ergibt insgesamt: 2,146 kg
A7: Gewürze | C7: Angabe in g/kg | E7: Menge in g
B8: Kochsalz | C8: 20 | E8: =C8*$D$2 -> 40.0 | G8: Speck zugeben, cuttern. Zweite Häfte der Schüttung zugeben, cuttern bis 12°C. zuletzt Petersil untermengen.
B9: Pfeffer, weiß | C9: 4 | E9: =C9*$D$2 -> 8.0
B10: Ingwer | C10: 2 | E10: 4.0
B11: Muskat | C11: 3 | E11: 6.0 | G11: Füllen in Därme 28/30, nicht zu prall
B12: Brätphosphat | C12: 4 | E12: 8.0
B13: Zwiebel, frisch | C13: 20 | E13: 40.0 | G13: Abdrehen und Brühen bei 78-80° für 30 Minuten
B14: Petersil, gehackt | C14: 20 | E14: 40.0
B15: Zitronenschale, gerieben | C15: nach Geschmack | E15: =SUM(E8:E14)/1000 -> 0 | G15: Abschrecken in kaltem Wasser, kühlen.
A17: Ausbeute bei Grundansatz(1): 1,373 kg | E17: =SUM(E5)+SUM(E8:E14)/1000 -> 2.15 | F17: Ansatz erforderlich
A18: Erforderlicher Ansatz für die gewünschte Ausbeute in kg: | E18: 2 | F18: =E18/1.373 -> 1.46

Sheet Leberkäse
B1: Zutaten | C1: Prozentualer Anteil | D1: Ansatz | E1: Menge in kg | F1: Tag 1 Vorbereitung | G1: Tag 2 Produktion
A2: Fleisch | B2: Schweinefleisch | C2: 42 | D2: 1 | E2: =C2*$D$2/100 -> 0.42 | F2: Fleisch und Speck in Streifen schneiden, mit den Gewürzen vermengen, kühlen auf 0°
B3: Rindfleisch | C3: 32 | E3: =C3*$D$2/100 -> 0.32
B4: Speck | C4: 25 | E4: =C4*$D$2/100 -> 0.25
B5: Fleischanteil gesamt | C5: =SUM(C2:C4) -> 99 | E5: =SUM(E2:E4) -> 0.99 | G5: Fleisch gemischt faschieren, Speck extra.
A6: Wasser | B6: Eis (Schüttung) | C6: 30 | E6: 0.30 | F6: =_xlfn.TEXTJOIN(" ",,"Ergibt insgesamt:",E23, "kg") -> Ergibt insgesamt: 1,1253 kg
A7: Gewürze | C7: Angabe in g/kg | E7: Menge in g
B8: Pökelsalz | C8: 28 | E8: =C8*$D$2 -> 28.0 | G8: Fleisch cuttern, erste Hälfte Schüttung zugeben.
B9: Kümmel | C9: 2.5 | E9: =C9*$D$2 -> 2.5
B10: Ingwer | C10: 1.5 | E10: 1.5
B11: Paprika, scharf | C11: 4 | E11: 4.0 | G11: Speck zugeben, weitercuttern, Kartoffelmehl und 2. Hälfte Schüttung zugeben, bis 12° cuttern
B12: Brätphosphat | C12: 4 | E12: 4.0
B13: Zwiebel, Pulver | C13: 18 | E13: 18.0 | G13: Leberkäswanne mit Öl ausstreichen, Masse möglichst luftrei einfüllen. Ränder etwas niederdrücken (Spatel), die Oberfläche kreuzweise einritzen.
B14: Knoblauch, Granulat | C14: 18 | E14: 18.0
B15: Kardamom, Pulver | C15: 1.8 | E15: 1.8 | G15: Im Wasserbad bei 200° anbraten, bei 160° fertiggaren. Entweder mit Kerntemperatur auf mindestens 70° garen, oder solange, bis der Leberkäse die gewünschte Bräunung aufweist, aufgeht und Risse bekommt. Alternativ: bei 80° für 20 Minuten vorgaren, dann bei 120° in etwa 2 Stunden fertiggaren, ggf. mit Oberhitze nachbräunen.
B16: Galgant, Pulver | C16: 1.3 | E16: 1.3
B17: Koriander, gemahlen | C17: 1.5 | E17: 1.5
B18: Piment, gemahlen | C18: 1 | E18: 1.0
B19: Pfeffer, weiß | C19: 2.2 | E19: 2.2
B20: Umrötungshilfsmttel (Allrosa) | C20: 1.5 | E20: 1.5
B21: Erdäpfelstärke, 2. Tag; siehe Produktion | C21: 50 | E21: 50.0
A23: Ausbeute bei Grundansatz(1): 1,13 kg | E23: =SUM(E2:E4)+SUM(E8:E21)/1000 -> 1.13 | F23: Ansatz erforderlich
A24: Erforderlicher Ansatz für die gewünschte Ausbeute in kg: | E24: 1.6 | F24: =E24/1.13 -> 1.42

Sheet Fleischkäse ohne Cutter
B1: Zutaten | C1: Prozentualer Anteil | D1: Ansatz | E1: Menge in kg | F1: Tag 1 Vorbereitung | G1: Tag 2 Produktion
A2: Fleisch | B2: Schweineschulter | C2: 50 | D2: 1 | E2: =C2*$D$2/100 -> 0.50 | F2: Fleisch und Speck in Streifen schneiden, mit den Gewürzen vermengen, 24 h kühlen auf 0° | G2: Alternativ: für eine Stunde im Tiefkühler anfrieren.
B3: Schweinebacke | C3: 30 | E3: =C3*$D$2/100 -> 0.30
B4: Speck | C4: 20 | E4: =C4*$D$2/100 -> 0.20
B5: Fleischanteil gesamt | C5: =SUM(C2:C4) -> 100 | E5: =SUM(E2:E4) -> 1.00 | F5: =_xlfn.TEXTJOIN(" ",,"Ergibt insgesamt:",E22, "kg") -> Ergibt insgesamt: 1,078 kg | G5: Fleisch gemischt mit der Zwiebel mit 3mm-Scheibe faschieren, Speck zunächst separat. Alles ein 2. Mal faschieren.
A6: Wasser | B6: Eis (Schüttung) | C6: 22 | E6: 0.22
A7: Gewürze | C7: Angabe in g/kg | E7: Menge in g
B8: Pökelsalz | C8: 21 | E8: =C8*$D$2 -> 21.0 | G8: Alles in die Küchenmaschine umfüllen, Gewürze zugeben. Zunächst langsam, dann mit höherer Drehzahl mengen. Allmählich Schüttung zugeben.
B9: Pfeffer, weiß | C9: 4 | E9: =C9*$D$2 -> 4.0
B10: Knoblauchpulver | C10: 2 | E10: 2.0
B11: Ingwer | C11: 1 | E11: 1.0 | G11: Bis 12° mengen.
B12: Kardamom, Pulver | C12: 2 | E12: 2.0 | G12: Leberkäswanne mit Öl ausstreichen, Masse möglichst luftrei einfüllen. Ränder etwas niederdrücken (Spatel), die Oberfläche kreuzweise einritzen.
B13: Koriander, gemahlen | C13: 2 | E13: 2.0
B14: Muskat | C14: 2 | E14: 2.0
B15: Zwiebel, frisch | C15: 40 | E15: 40.0
B16: Brätphosphat | C16: 4 | E16: =C16*$D$2 -> 4.0 | G16: Im Ofen bei 80° 20 Minuten vorgaren, dann bei 120° etwa 2 Stunden fertiggaren bis zu ener Kerntemperatur von 68°. Zum Schluss die Oberfläche noch etwas bräunen, so erforderlich.
E17: 0.0
E18: 0.0
E19: 0.0
E20: 0.0
A22: Ausbeute bei Grundansatz(1): 1,08kg | E22: =SUM(E2:E4)+SUM(E8:E20)/1000 -> 1.08 | F22: Ansatz erforderlich
A23: Erforderlicher Ansatz für die gewünschte Ausbeute in kg: | E23: 25 | F23: =E23/1.078 -> 23.19

Sheet Kümmelfleisch
B1: Zutaten | C1: Prozentualer Anteil | D1: Ansatz | E1: Menge in kg | F1: Vorbereitung | G1: Produktion
A2: Fleisch | B2: Schweineschulter, mageres Kleinfleisch | C2: 100 | D2: 1.7 | E2: =C2*$D$2/100 -> 1.70 | F2: In grobe Stücke schneiden | G2: Tag 1: mit NPS und Ascorbinsäure 10 Minuten in der Küchenmaschine durchmengen, dann luftfrei in ein Gefäß füllen, 24 h stehen lassen.
B3: Fleischanteil gesamt | C3: =SUM(C2:C2) -> 100 | E3: =SUM(E2:E2) -> 1.70 | G3: Tag 2: mit Gewürzen und evtl. etwas mehr Schüttung wieder 10 Minuten durchmengen, für weitere 24h kühlen (luftfrei)
A4: Wasser | B4: Eis (Schüttung) | C4: 20 | E4: =C4*$D$2/100 -> 0.34 | F4: =_xlfn.TEXTJOIN(" ",,"Ergibt insgesamt:",E15, "kg") -> Ergibt insgesamt: 2,11055 kg
B5: Gesamtausbeute, etwa | E5: =E3+E4 -> 2.04
A6: Gewürze | C6: Angabe in g/kg | E6: Menge in g
B7: Pökelsalz | C7: 22 | E7: =C7*$D$2 -> 37.4 | G7: Tag 3: in mit Folie ausgelgte Form luftfrei füllen, Folie zusammenschlagen, Überstände abschneiden. Bei 78° 3h garen; alternativ: in Foilie vakuumieren, binden.
B8: Ascorbinsäure | C8: 1.5 | E8: =C8*$D$2 -> 2.55
B9: Pfeffer | C9: 4 | E9: 6.8
B10: Ingwer | C10: 2 | E10: 3.4 | G10: Auskühlen lassen, zunächst in kaltem Wasser, dan im Kühlschrank.
B11: Kardamom | C11: 2 | E11: 3.4
B12: Kümmel, gestoßen | C12: 6 | E12: 10.2
B13: Brätphosphat | C13: 4 | E13: 6.8
A15: Ausbeute bei Grundansatz(1): 1,24 kg | E15: =SUM(E5)+SUM(E7:E13)/1000 -> 2.11 | F15: Ansatz erforderlich
A16: Erforderlicher Ansatz für die gewünschte Ausbeute in kg: | E16: 2 | F16: =E16/1.24 -> 1.61

Sheet Blutwurst I
B1: Zutaten | C1: Prozentualer Anteil (grün) bzw. Standardwerte für Ansatz 1 | D1: Ansatz | E1: Menge in kg | F1: Vorbereitung | G1: Produktion, Temperaturverlauf farblich hervorgehoben | H1: Ansatz 24.2.2021
A2: Fleisch | B2: Sauschädel mit Schwarte | C2: 35 | D2: 3 | E2: =C2*$D$2/100 -> 1.05 | F2: Zerteilt mit Gewürzsäckchen und etwas Salz 20 Minuten im Druckkochtopf garen, leicht auskühlen lassen. Mageres Fleisch fein (3mm), Fettes mittelfein (5mm) faschieren. | G2: 1 Vorkochen im Drucktopf mit dem Gewürzsäckchen, Sud aufheben! | H2: 2.2
B3: Kleinfleisch | C3: 23 | E3: =C3*$D$2/100 -> 0.69 | H3: 1.1
B4: Schwarten | C4: 20 | E4: =C4*$D$2/100 -> 0.60 | H4: 1.1
B5: Speck | C5: 22 | E5: =C5*$D$2/100 -> 0.66 | F5: Kalt entweder händisch mittelfein würfeln oder durch sehr grobe Scheibe faschieren | G5: 2 Faschieren | H5: 1.1
B6: Fleischanteil gesamt, mit Blut | C6: =SUM(C2:C5) -> 100 | E6: =SUM(E2:E5)+E9 -> 3.63 | F6: =_xlfn.TEXTJOIN(" ",,"Ergibt insgesamt etwa:",E22, "kg") -> Ergibt insgesamt etwa: 4,58117647058823 kg
B7: Semmelbröckerl für Ansatz 1 | C7: 1 | E7: =C7*$D$2/10 -> 0.44 | H7: 0.75
B8: Kochsud Richtwert!, eher nach Gefühl | C8: 2 | E8: =C8*$D$2/10 -> 0.51 | H8: =5/4 -> 1.25
A9: Blut | B9: Schweineblut für Ansatz 1 | C9: 21 | E9: 0.63 | H9: 1.2
A10: Gewürze | C10: Angaben, Vorschlag für Ansatz 1 | D10: Angabe in | E10: benötigte Mengen, ca.
B11: Lorbeerblatt | C11: 1 | D11: Stück | E11: =C11*$D$2 -> 3.0 | F11: Gewürzsäckchen, mit dem Fleisch kochen, dann entfernen. | G11: 3 Semmelbröckerl mit Kochsud gut anfeuchten, alle zerkleinerten Zutaten zugeben und mit dem Blut mischen | H11: 3
B12: Pfefferkörner | C12: 0.42 | D12: EL | E12: =C12*$D$2 -> 1.3 | H12: 25
B13: Pimentkörner | C13: 0.2 | D13: KL | E13: 0.6 | H13: 15
B14: Majoran | C14: 0.4 | D14: EL | E14: 1.2 | H14: 1.5
B15: Knoblauchzehen, leicht angedrückt | C15: 1 | D15: Stück | E15: 3.0 | H15: 3
B16: Zwiebel weiß | C16: 0.8 | D16: Stück | E16: 2.4 | F16: mittelfein schneiden und in etwas Fett (Schmalz) leicht anrösten | H16: 4
B17: Piment, gemahlen | C17: 0.2 | D17: EL | E17: 0.6 | H17: 1.5
B18: Majoran | C18: 0.2 | D18: Handvoll | E18: 0.6 | F18: Abschmecken nach perönlichem Gusto; Salzgehalt des Suds berücksichtigen! | G18: 4 Abschmecken | H18: 5
B19: Pfeffer, geschrotet oder aus Mühle | C19: 0.5 | D19: EL | E19: 1.5 | G19: 5 Füllen in Rinderseitlinge | H19: 4.5
B20: Salz | C20: 1 | D20: EL | E20: 3.0 | G20: 6 Brühen bei 80°, etwa 1 Stunde | H20: 150
H21: =SUM(H15:H20) -> 168
A22: Ausbeute bei Grundansatz(1): 1,53 kg | E22: =SUM(E6:E8) -> 4.58 | F22: Ansatz erforderlich | H22: =SUM(H2:H9)+SUM(H15:H20)/100 -> 10.38
A23: Erforderlicher Ansatz für die gewünschte Ausbeute in kg: | E23: 10.38 | F23: =E23/1.53 -> 6.78

Sheet Feine Leberstreichwurst
B1: Zutaten | C1: Prozentualer Anteil | D1: Ansatz | E1: Menge in kg | F1: Vorbereitung | G1: Produktionsschritte
A2: Fleisch | B2: Bauchfleisch | C2: 40 | D2: 1 | E2: =C2*$D$2/100 -> 0.40 | F2: Gemeinsam kochen,etwa 45 Minuten | G2: Faschieren mit 3mm-Scheibe, auch die Zwiebel (gem. mit Leber)
B3: Speck | C3: 30 | E3: =C3*$D$2/100 -> 0.30
B4: Zwiebel, siehe unten | F4: Leber in Streifen schneide, wässern. Gemeinam roh faschieren
B5: Leber | C5: 30 | E5: 0.30
B6: Fleischanteil gesamt | C6: =SUM(C2:C5) -> 100 | E6: =SUM(E2:E5) -> 1.00 | G6: Leber mit Pökelsalz aufschlagen (Schneebesen)
A7: Gewürze | C7: Angabe in g/kg | E7: Menge in g
B8: Pökelsalz | C8: 22 | E8: =C8*$D$2 -> 22.0 | G8: Fleisch noch warm faschieren, mit etwas Sud (etwa 150 ml bei Ansatz 1) die Maschine "ausspülen"
B9: Pfeffer | C9: 4 | E9: =C9*$D$2 -> 4.0
B10: Ingwer | C10: 3 | E10: 3.0
B11: Muskat | C11: 1 | E11: 1.0 | G11: Mischen, Gewürze zugeben und homogenisieren
B12: Piment | C12: 1 | E12: 1.0
B13: Zwiebel, frisch | C13: 60 | E13: 60.0
B14: Kardamom, Pulver | C14: 5 | E14: 5.0 | G14: In Sterildarm oder Gläser füllen, Würste 45 Minuten bei 85° brühen, Gläser bei 100° 2 Stunden sterilisieren.
A16: Ausbeute bei Grundansatz(1): 1,14 kg | E16: =SUM(E6)+SUM(E8:E14)/1000 -> 1.10 | F16: Ansatz erforderlich
A17: Erforderlicher Ansatz für die gewünschte Ausbeute in kg: | E17: 1 | F17: =E17/1.14 -> 0.88

Sheet Feine Leberstreichwurst 2
B1: Zutaten | C1: Prozentualer Anteil | D1: Ansatz | E1: Menge in kg | F1: Vorbereitung | G1: Produktionsschritte
A2: Fleisch | B2: Bauchfleisch | C2: 40 | D2: 1 | E2: =C2*$D$2/100 -> 0.40 | F2: Gemeinsam kochen,etwa 45 Minuten | G2: Faschieren mit 3mm-Scheibe, auch die Zwiebel (gem. mit Leber)
B3: Speck | C3: 30 | E3: =C3*$D$2/100 -> 0.30
B4: Zwiebel, siehe unten | F4: Gemeinam roh faschieren
B5: Leber | C5: 30 | E5: 0.30
B6: Fleischanteil gesamt | C6: =SUM(C2:C5) -> 100 | E6: =SUM(E2:E5) -> 1.00 | G6: Leber mit Pökelsalz aufschlagen (Schneebesen)
A7: Gewürze | C7: Angabe in g/kg | E7: Menge in g
B8: Pökelsalz | C8: 22 | E8: =C8*$D$2 -> 22.0 | G8: Fleisch noch warm faschieren, mit etwas Sud die Maschine "ausspülen"
B9: Pfeffer | C9: 4 | E9: =C9*$D$2 -> 4.0
B10: Ingwer | C10: 3 | E10: 3.0
B11: Muskat | C11: 1 | E11: 1.0 | G11: Mischen, Gewürze zugeben und homogenisieren, zuletzt Schnittlauch unterziehen.
B12: Piment | C12: 1 | E12: 1.0
B13: Zwiebel, frisch | C13: 60 | E13: 60.0
B14: Schnittlauch | C14: 50 | E14: 50.0 | G14: In Sterildarm oder Gläser füllen, Würste 45 Minuten bei 85° brühen, Gläser bei 100° 2 Stunden sterilisieren.
A16: Ausbeute bei Grundansatz(1): 1,14 kg | E16: =SUM(E6)+SUM(E8:E14)/1000 -> 1.14 | F16: Ansatz erforderlich
A17: Erforderlicher Ansatz für die gewünschte Ausbeute in kg: | E17: 1 | F17: =E17/1.14 -> 0.88

Sheet Bratwürstel
B1: Zutaten | C1: Prozentualer Anteil | D1: Ansatz | E1: Menge in kg | F1: 1 | G1: Produktion
A2: Fleisch | B2: Schweineschulter, mageres Kleinfleisch | C2: 50 | D2: 1 | E2: =C2*$D$2/100 -> 0.50 | G2: Alles getrennt faschieren, mageres mit 3mm-Scheibe, Bauch 4,5mm
B3: Bauchfleisch, ohne Schwarte, ohne Knochen | C3: 50 | E3: =C3*$D$2/100 -> 0.50
B4: Fleischanteil gesamt | C4: =SUM(C2:C3) -> 100 | E4: =SUM(E2:E3) -> 1.00 | G4: Faschierte Schulter mit Nitritpökelsalz cuttern oder ein 2. Mal faschieren, mit Schüttung bis 12°
A5: Wasser | B5: Eis (Schüttung) | C5: 20 | E5: 0.20 | F5: =_xlfn.TEXTJOIN(" ",,"Ergibt insgesamt:",E20, "kg") -> Ergibt insgesamt: 1,2455 kg
B6: Gesamtausbeute, etwa | E6: =E4+E5 -> 1.20
A7: Gewürze | C7: Angabe in g/kg | E7: Menge in g
B8: Kochsalz | C8: 10 | E8: =C8*$D$2 -> 10.0 | G8: Feinbrät mit faschiertem Fettfleisch und Gewürzen vermengen, wahlweise von Hand oder in Küchenmaschine
B9: Pökelsalz | C9: 10 | E9: =C9*$D$2 -> 10.0
B10: Pfeffer, schwarz, geschrotet | C10: 4 | E10: =C10*$D$2 -> 4.0
B11: Majoran | C11: 1 | E11: 1.0
B12: Thymian | C12: 0.5 | E12: 0.5 | G12: Füllen in Därme 28/32
B13: Koriander | C13: 0.5 | E13: 0.5
B14: Knoblauch granuliert | C14: 3.5 | E14: 3.5
B15: Kümmel, gemahlen | C15: 2 | E15: 2.0
B16: Brätphosphat | C16: 4 | E16: 4.0
B17: Erdäpfelstärke | C17: 10 | E17: 10.0 | G17: Abdrehen
B18: Zitronenschale, gerieben | C18: nach Geschmack | E18: =SUM(E8:E16)/1000 -> 0 | G18: zum Trocknen aufhängen
A20: Ausbeute bei Grundansatz(1): 1,25 kg | E20: =SUM(E6)+SUM(E8:E17)/1000 -> 1.25 | F20: Ansatz erforderlich
A21: Erforderlicher Ansatz für die gewünschte Ausbeute in kg: | E21: 7 | F21: =E21/1.25 -> 5.60
B30: 18g Kochsalz 4g Pfeffer weiß 1g Kümmel gemahlen 3g Kümmel gestoßen 2g Muskat 4g Kutterhilfsmittel (je nach Herstellerangabe)

Sheet Fränkische Bratwurst
B1: Zutaten | C1: Prozentualer Anteil | D1: Ansatz | E1: Menge in kg | F1: Vorbereitung (Tag 1) | G1: Produktion (Tag 2)
A2: Fleisch | B2: Schweineschulter, mageres Kleinfleisch | C2: 40 | D2: 2 | E2: =C2*$D$2/100 -> 0.80 | F2: Fleisch in Stücke schneiden, kühlen | G2: Gewürze über dem Fleisch verteilen, mengen
B3: Bauchfleisch, ohne Schwarte, ohne Knochen | C3: 60 | E3: =C3*$D$2/100 -> 1.20
B4: Fleischanteil gesamt | C4: =SUM(C2:C3) -> 100 | E4: =SUM(E2:E3) -> 2.00 | G4: Durch 4,5mm-Scheibe faschieren
B5: Gesamtausbeute, etwa | E5: =E4 -> 2.00
A6: Gewürze | C6: Angabe in g/kg | E6: Menge in g
B7: Kochsalz | C7: 18 | E7: =C7*$D$2 -> 36.0 | G7: Etwa 10 Minuten in der Küchenmaschine durcharbeiten
B8: Pfeffer, schwarz, geschrotet | C8: 4 | E8: =C8*$D$2 -> 8.0
B9: Majoran | C9: 3 | E9: 6.0
B10: Ingwer | C10: 1 | E10: 2.0 | G10: Füllen in Därme 28/30 oder Bändel mit Abstand!
B11: Muskat | C11: 2 | E11: 4.0
B12: (Zitronenschale, gerieben) | C12: nach Geschmack | E12: =SUM(E7:E11)/1000 -> 0 | G12: Vereinzeln, nicht abdrehen! Braten oder grillen.
A14: Ausbeute bei Grundansatz(1): 1,03 kg | E14: =SUM(E5)+SUM(E7:E11)/1000 -> 2.06 | F14: Ansatz erforderlich
A15: Erforderlicher Ansatz für die gewünschte Ausbeute in kg: | E15: 2 | F15: =E15/1.03 -> 1.94

Sheet Nürnberger Rostbratwürste
B1: Zutaten | C1: Prozentualer Anteil | D1: Ansatz | E1: Menge in kg | F1: 1 | G1: Produktion
A2: Fleisch | B2: Schweineschulter, mageres Kleinfleisch | C2: 40 | D2: 2 | E2: =C2*$D$2/100 -> 0.80 | G2: Alles getrennt faschieren, mageres mit 3mm-Scheibe und Zwiebel, Bauch extra 4,5mm
B3: Bauchfleisch, ohne Schwarte, ohne Knochen | C3: 60 | E3: =C3*$D$2/100 -> 1.20
B4: Fleischanteil gesamt | C4: =SUM(C2:C3) -> 100 | E4: =SUM(E2:E3) -> 2.00 | G4: Schüttung (Küchenmaschine) zur Kühlung vorlegen, faschierte Schulter/Zwiebel mit Salz und Gewürzen durchmengen
A5: Wasser | B5: Eis (Schüttung) | C5: 15 | E5: 0.30 | F5: =_xlfn.TEXTJOIN(" ",,"Ergibt insgesamt:",E18, "kg") -> Ergibt insgesamt: 2,371 kg
B6: Gesamtausbeute, etwa | E6: =E4+E5 -> 2.30
A7: Gewürze | C7: Angabe in g/kg | E7: Menge in g
B8: Kochsalz | C8: 20 | E8: =C8*$D$2 -> 40.0 | G8: Grob Faschiertes zugeben, weiter mengen, Majoran erst zum Ende hin zugeben
B9: Pfeffer, weiß | C9: 4 | E9: =C9*$D$2 -> 8.0
B10: Ingwer | C10: 2 | E10: 4.0
B11: Muskat | C11: 2 | E11: 4.0 | G11: Füllen in Schafseitlinge 18/20, auf 7cm abdrehen.
B12: Piment | C12: 1 | E12: 2.0
B13: Majoran | C13: 2 | E13: 4.0
B14: Zwiebel (1/2 je kg) | C14: 0.5 | E14: 1.0
B15: Brätphosphat | C15: 4 | E15: 8.0
B16: Zitronenschale, gerieben | C16: nach Geschmack | E16: =SUM(E8:E15)/1000 -> 0 | G16: Brühen 25 Minuten bei 78°, abschrecken.
A18: Ausbeute bei Grundansatz(1): 1,19 kg | E18: =SUM(E6)+SUM(E8:E15)/1000 -> 2.37 | F18: Ansatz erforderlich
A19: Erforderlicher Ansatz für die gewünschte Ausbeute in kg: | E19: 2 | F19: =E19/1.19 -> 1.68

Sheet Thüringer Bratwurst
B1: Zutaten | C1: Prozentualer Anteil | D1: Ansatz | E1: Menge in kg | F1: 1 | G1: Produktion
A2: Fleisch | B2: Schweineschulter, mageres Kleinfleisch | C2: 30 | D2: 1 | E2: =C2*$D$2/100 -> 0.30 | F2: Feinbestandteile | G2: Alles getrennt faschieren,
B3: Speck | C3: 10 | E3: =C3*$D$2/100 -> 0.10
B4: Bauchfleisch, ohne Schwarte, ohne Knochen | C4: 60 | E4: =C4*$D$2/100 -> 0.60 | F4: Grobeinlage | G4: mit 4,5mm faschieren
B5: Fleischanteil gesamt | C5: =SUM(C2:C4) -> 100 | E5: =SUM(E2:E4) -> 1.00 | G5: Schulter und Speck mit der Hälfte der Gewürze in der Küchenmaschine mengen, allmählich Schüttung zugeben. (Paddel)
A6: Wasser | B6: Eis (Schüttung) | C6: 15 | E6: 0.15 | F6: =_xlfn.TEXTJOIN(" ",,"Ergibt insgesamt:",E18, "kg") -> Ergibt insgesamt: 1,186 kg
B7: Gesamtausbeute, etwa | E7: =E5+E6 -> 1.15
A8: Gewürze | C8: Angabe in g/kg | E8: Menge in g
B9: Kochsalz | C9: 20 | E9: =C9*$D$2 -> 20.0 | G9: Rest der Gewürze + weitere Schüttung, etwa 10 Minuten mengen.
B10: Pfeffer, schwarz | C10: 4 | E10: =C10*$D$2 -> 4.0
B11: Kümmel, gemahlen | C11: 1 | E11: 1.0
B12: Kümmel, gestoßen | C12: 3 | E12: 3.0 | G12: Grobbestandteile zugeben, auf Knethaken wechseln, von Hand nachkneten
B13: Muskat | C13: 3 | E13: 3.0
B14: Zwiebelpulver | C14: 1 | E14: 1.0
B15: Brätphosphat | C15: 4 | E15: 4.0
E16: =SUM(E9:E15)/1000 -> 0 | G16: In Schweinedarm 28/30 füllen, Raum zwischen den Würsten lassen, vereinzeln, kühlen.
A18: Ausbeute bei Grundansatz(1): 1,19 kg | E18: =SUM(E7)+SUM(E9:E15)/1000 -> 1.19 | F18: Ansatz erforderlich
A19: Erforderlicher Ansatz für die gewünschte Ausbeute in kg: | E19: 2 | F19: =E19/1.19 -> 1.68

Sheet Salami
B1: Zutaten | C1: Prozentualer Anteil | D1: Ansatz | E1: Menge in kg | F1: 1 | G1: Produktion
A2: Fleisch | B2: Schweineschulter, fett | C2: 80 | D2: 1 | E2: =C2*$D$2/100 -> 0.80 | G2: Alles getrennt faschieren, mit 9mm-Scheibe, Fleisch bereits gewürzt
B3: Rückenspeck | C3: 20 | E3: =C3*$D$2/100 -> 0.20
B4: Fleischanteil gesamt | C4: =SUM(C2:C3) -> 100 | E4: =SUM(E2:E3) -> 1.00 | G4: Mischen, kühlen auf 0°
A5: Gewürze | C5: Angabe in g/kg | E5: Menge in g
B6: Kochsalz/Meersalz | C6: 30 | E6: =C6*$D$2 -> 30.0 | G6: Kultur einarbeiten, füllen.
B7: Pökelsalz | C7: 4 | E7: =C7*$D$2 -> 4.0
B8: Pfeffer, schwarz, geschrotet | C8: 2 | E8: =C8*$D$2 -> 2.0
B9: Rotwein | C9: 30 | E9: 30.0
B10: Starterkulturen n. A., in Aqua Dest. gelöst | C10: 0.1 | E10: =C10*$D$2 -> 0.1 | G10: Rinderdärme abbinden, 24 h bei Zimmertemperatur, dann Trocknen bei 7°
B11: Schimmelpilzkultur, fakultativ | C11: 0.1 | E11: 0.1
A13: Ausbeute bei Grundansatz(1): 1,07 kg | E13: =E4+SUM(E6:E11)/1000 -> 1.07 | F13: Ansatz erforderlich | G13: Ansatz erforderlich
A14: Erforderlicher Ansatz für die gewünschte Ausbeute in kg: | E14: 1 | F14: =E14/1.07 -> 0.93 | G14: =E14/1.07 -> 0.93

Sheet Ungarische Salami
B1: Zutaten | C1: Prozentualer Anteil | D1: Ansatz | E1: Menge in kg | F1: Vorbereitung | G1: Produktion
A2: Fleisch | B2: Schweineschulter, mager | C2: 72 | D2: 1 | E2: =C2*$D$2/100 -> 0.72 | F2: Vorpökeln 2 Tage, schräg lagern! | G2: Ausgetreten Fleischsaft verwerfen!
B3: Rückenspeck | C3: 28 | E3: =C3*$D$2/100 -> 0.28 | F3: vorfrieren, dann schneiden
B4: Fleischanteil gesamt | C4: =SUM(C2:C3) -> 100 | E4: =SUM(E2:E3) -> 1.00 | G4: Fleisch faschieren mit 8mm-Scheibe, Speck extra.
A5: Gewürze | C5: Angabe in g/kg | E5: Menge in g
B6: Pökelsalz | C6: 28 | E6: =C6*$D$2 -> 28.0 | G6: Entweder cuttern auf 0,5mm, dabei Starterkultur und Gewürze zugeben, alternativ die Masse ein 2. Mal durch 3mm-Scheibe faschieren.
B7: Pfeffer, schwarz, geschrotet | C7: 1.5 | E7: =C7*$D$2 -> 1.5
B8: Staubzucker | C8: 2 | E8: 2.0
B9: Knoblauchgranulat | C9: 1 | E9: 1.0 | G9: Därme? abbinden, 24 h bei Zimmertemperatur, dann Trocknen bei 7°. Luftfeuchte von 94% fallend, auch Temperatur zurücknehmen. Zuletzt bei 12°, 70%
B10: Starterkulturen n. A., in Aqua Dest. gelöst | C10: 0.1 | E10: 0.1
B11: Schimmelpilzkultur, fakultativ | C11: 0.1 | E11: 0.1
A13: Ausbeute bei Grundansatz(1): 1,03 kg | E13: =E4+SUM(E6:E11)/1000 -> 1.03 | F13: Ansatz erforderlich
A14: Erforderlicher Ansatz für die gewünschte Ausbeute in kg: | E14: 2 | F14: =E14/1.03 -> 1.94

Sheet Salsiccia Cinghiale
B1: Zutaten | C1: Prozentualer Anteil | D1: Ansatz | E1: Menge in kg | F1: Vorbereitung | G1: Produktion
A2: Fleisch | B2: Wildschweinfleisch | C2: 60 | D2: 2.5 | E2: =C2*$D$2/100 -> 1.50 | F2: Antauen, grob würfeln | G2: Mit Gewürzen mischen, durch 12mm-Scheibe faschieren, min. 8h kühlen
B3: Schweineschulter | C3: 20 | E3: =C3*$D$2/100 -> 0.50 | F3: grob würfeln
B4: Rückenspeck | C4: 20 | E4: =C4*$D$2/100 -> 0.50 | F4: vorfrieren, dann grob schneiden | G4: Separat faschieren, kühlen.
B5: Fleischanteil gesamt | C5: =SUM(C2:C4) -> 100 | E5: =SUM(E2:E4) -> 2.50 | G5: Beides Vermengen, dann durch 4,5 oder 6mm-Scheibe faschieren,
A6: Gewürze | C6: Angabe in g/kg | E6: Menge in g
B7: Pökelsalz | C7: 3.2 | E7: =C7*$D$2 -> 8.0 | G7: In Küchenmaschine geben, Wein einarbeiten, zuletzt aufgelöste Starterkulturen.
B8: Meersalz | C8: 30 | E8: =C8*$D$2 -> 75.0
B9: Dextrose | C9: 4 | E9: 10.0
B10: Peffer | C10: 2.8 | E10: 7.0 | G10: Kühl und zügig arbeiten
B11: Koriander | C11: 4 | E11: 10.0 | G11: In Därme füllen.
B12: Cayennepfeffer | C12: 2 | E12: 5.0 | G12: Därme? abbinden, 24 h bei Zimmertemperatur, dann Trocknen bei 7°. Luftfeuchte von 94% fallend, auch Temperatur zurücknehmen. Zuletzt bei 12°, 70%
B13: Macis, gemahlen | C13: 1.6 | E13: 4.0
B14: Trockener Weißwein | C14: 50 | E14: 125.0
B15: Starterkulturen n. A., in Aqua Dest. gelöst | C15: 0 | D15: Dos | E15: 0.0
B16: Schimmelpilzkultur, fakultativ | C16: 0 | D16: Dos | E16: 0.0
A18: Ausbeute bei Grundansatz(1): 1,03 kg | E18: =E5+SUM(E7:E16)/1000 -> 2.74 | F18: Ansatz erforderlich
A19: Ansatz für die gewünschte Ausbeute in kg: | E19: 2 | F19: =E19/1.03 -> 1.94

Sheet Mortadella
B1: Zutaten | C1: Prozentualer Anteil | D1: Ansatz | E1: Menge in kg | F1: Vorbereitung | G1: Produktion
A2: Fleisch | B2: Schweineschulter, mager | C2: 60 | D2: 1 | E2: =C2*$D$2/100 -> 0.60 | G2: getrennt faschieren durch 3mm-Scheibe
B3: Rückenspeck | C3: 20 | E3: =C3*$D$2/100 -> 0.20
B4: Rückenspeck, gewürfelt | C4: 20 | E4: =C4*$D$2/100 -> 0.20 | F4: vorfrieren, dann schneiden | G4: nach dem Schneiden überbrühen, auskühlen lassen.
B5: Fleischanteil gesamt | C5: =SUM(C2:C4) -> 100 | E5: =SUM(E2:E4) -> 1.00 | G5: zuerst Fleisch mit Gewürzen und der halben Schüttung cuttern, dann Speck und restliche Schüttung dazu, bis 12° cuttern.
B6: Schüttung | C6: 22 | E6: =C6*$D$2/100 -> 0.22
A7: Gewürze | C7: Angabe in g/kg | E7: Menge in g
B8: Pökelsalz | C8: 20 | E8: =C8*$D$2 -> 20.0 | G8: Pistazien und Speckwürfel untermengen. In Kunstdarm füllen.
B9: Pfeffer, weiß | C9: 4 | E9: =C9*$D$2 -> 4.0
B10: Ingwer | C10: 2 | E10: 2.0
B11: Muskat | C11: 3 | E11: 3.0 | G11: bei 78° 90 Minuten brühen, abschrecken, auskühlen lassen
B12: Cutterhilfsmittel | C12: 4 | E12: 4.0
B13: Pistazien | C13: 8 | E13: 8.0
A15: Ausbeute bei Grundansatz(1): 1,26 kg | E15: =E5+E6+SUM(E8:E13)/1000 -> 1.26 | F15: Ansatz erforderlich
A16: Erforderlicher Ansatz für die gewünschte Ausbeute in kg: | E16: 2 | F16: =E16/1.26 -> 1.59
